[Event "Early-Titled-Tuesday-Blitz-March-26-2024"]
[Site "Chess.com"]
[Date "2024.03.26"]
[Round "2"]
[White "CarlosjPineror"]
[Black "ITheOnlyME"]
[Result "1-0"]
[WhiteElo "2768"]
[BlackElo "2425"]
[TimeControl "180+1"]
[EndTime "8:16:59 PDT"]
[Termination "CarlosjPineror won by resignation"]

1. e4 {[%clk 0:03:00.9]} 1... c5 {[%clk 0:02:57.7]} 2. Nf3 {[%clk 0:03:00.2]}
2... g6 {[%clk 0:02:57.6]} 3. g3 {[%clk 0:02:59.4]} 3... Bg7 {[%clk 0:02:56.9]}
4. Bg2 {[%clk 0:02:59.5]} 4... Nc6 {[%clk 0:02:55.2]} 5. O-O {[%clk 0:02:59.5]}
5... d6 {[%clk 0:02:54.1]} 6. h3 {[%clk 0:02:59.9]} 6... Nf6 {[%clk 0:02:54.4]}
7. Nc3 {[%clk 0:02:59.9]} 7... O-O {[%clk 0:02:54.8]} 8. d3 {[%clk 0:03:00.3]}
8... a6 {[%clk 0:02:55]} 9. Be3 {[%clk 0:03:00.5]} 9... b5 {[%clk 0:02:54.8]}
10. Qd2 {[%clk 0:03:00.7]} 10... Bb7 {[%clk 0:02:53.8]} 11. Ne1 {[%clk
0:02:59.9]} 11... Nd7 {[%clk 0:02:49]} 12. Nd1 {[%clk 0:02:56.5]} 12... e6
{[%clk 0:02:45.1]} 13. f4 {[%clk 0:02:55.1]} 13... Nd4 {[%clk 0:02:41.2]} 14. c3
{[%clk 0:02:54.7]} 14... Nc6 {[%clk 0:02:41.6]} 15. Nf3 {[%clk 0:02:44.5]} 15...
f5 {[%clk 0:02:39.8]} 16. exf5 {[%clk 0:02:32.4]} 16... exf5 {[%clk 0:02:37.6]}
17. Ng5 {[%clk 0:02:16.7]} 17... Qf6 {[%clk 0:02:28.2]} 18. Bd5+ {[%clk
0:02:14]} 18... Kh8 {[%clk 0:02:28.4]} 19. Qg2 {[%clk 0:02:11.7]} 19... Rac8
{[%clk 0:02:23.8]} 20. Ne6 {[%clk 0:02:11.1]} 20... Rfe8 {[%clk 0:02:22.7]} 21.
Nxg7 {[%clk 0:02:11.4]} 21... Qxg7 {[%clk 0:02:21.1]} 22. Bf2 {[%clk 0:01:56.4]}
22... Nf6 {[%clk 0:02:21.7]} 23. Bf3 {[%clk 0:01:56.3]} 23... d5 {[%clk
0:02:16.4]} 24. Bxc5 {[%clk 0:01:54.5]} 24... d4 {[%clk 0:02:09.5]} 25. cxd4
{[%clk 0:01:47.6]} 25... Rcd8 {[%clk 0:02:08.8]} 26. d5 {[%clk 0:01:28.3]} 26...
Na5 {[%clk 0:01:52.2]} 27. d6 {[%clk 0:01:24.2]} 27... Bxf3 {[%clk 0:01:47.8]}
28. Qxf3 {[%clk 0:01:23.9]} 28... Nb7 {[%clk 0:01:48.7]} 29. Bb4 {[%clk
0:01:07.8]} 29... a5 {[%clk 0:01:47.1]} 30. Bc3 {[%clk 0:01:07.1]} 30... b4
{[%clk 0:01:47.6]} 31. Be5 {[%clk 0:01:07.7]} 31... Nxd6 {[%clk 0:01:44.9]} 32.
Nf2 {[%clk 0:01:07.4]} 32... Nf7 {[%clk 0:01:43.8]} 33. d4 {[%clk 0:01:02.2]}
33... Nxe5 {[%clk 0:01:44.2]} 34. dxe5 {[%clk 0:01:03]} 34... Nd5 {[%clk
0:01:44.7]} 35. Rfd1 {[%clk 0:01:02.8]} 35... Qf7 {[%clk 0:01:44]} 36. Rac1
{[%clk 0:01:02.3]} 36... Nb6 {[%clk 0:01:38.2]} 37. b3 {[%clk 0:00:57.5]} 37...
a4 {[%clk 0:01:37.1]} 38. Rxd8 {[%clk 0:00:52.5]} 38... Rxd8 {[%clk 0:01:37.2]}
39. Rc6 {[%clk 0:00:53.2]} 39... axb3 {[%clk 0:01:35.9]} 40. Qxb3 {[%clk
0:00:47.7]} 40... Nd5 {[%clk 0:01:33.2]} 41. Qc4 {[%clk 0:00:35.9]} 41... Qa7
{[%clk 0:01:24.6]} 42. Rd6 {[%clk 0:00:26.5]} 42... Rxd6 {[%clk 0:01:16.8]} 43.
exd6 {[%clk 0:00:27.4]} 43... Nf6 {[%clk 0:01:17.7]} 44. Qc8+ {[%clk 0:00:22.9]}
44... Ng8 {[%clk 0:01:10.2]} 45. d7 {[%clk 0:00:22.6]} 1-0

[Event "Early-Titled-Tuesday-Blitz-March-26-2024"]
[Site "Chess.com"]
[Date "2024.03.26"]
[Round "2"]
[White "nabukatnezarr"]
[Black "mbojan"]
[Result "0-1"]
[WhiteElo "2590"]
[BlackElo "2880"]
[TimeControl "180+1"]
[EndTime "8:17:01 PDT"]
[Termination "mbojan won by resignation"]

1. e4 {[%clk 0:03:00.9]} 1... c5 {[%clk 0:03:00.2]} 2. Nc3 {[%clk 0:02:57]} 2...
e6 {[%clk 0:03:00.1]} 3. Nge2 {[%clk 0:02:50.4]} 3... a6 {[%clk 0:02:57.7]} 4.
g3 {[%clk 0:02:50.1]} 4... b5 {[%clk 0:02:57.9]} 5. Bg2 {[%clk 0:02:49.9]} 5...
Bb7 {[%clk 0:02:58.6]} 6. O-O {[%clk 0:02:44.5]} 6... Nf6 {[%clk 0:02:58.3]} 7.
d3 {[%clk 0:02:27.1]} 7... d6 {[%clk 0:02:58.4]} 8. f4 {[%clk 0:02:19.5]} 8...
Nc6 {[%clk 0:02:55.8]} 9. Kh1 {[%clk 0:02:19.1]} 9... Be7 {[%clk 0:02:55.1]} 10.
Be3 {[%clk 0:02:13.7]} 10... h5 {[%clk 0:02:54.6]} 11. h3 {[%clk 0:02:09]} 11...
Nd7 {[%clk 0:02:52.9]} 12. Qe1 {[%clk 0:01:48.5]} 12... h4 {[%clk 0:02:52.2]}
13. g4 {[%clk 0:01:47.9]} 13... g5 {[%clk 0:02:52.8]} 14. f5 {[%clk 0:01:41.2]}
14... Nde5 {[%clk 0:02:50]} 15. Qd2 {[%clk 0:01:29]} 15... Rg8 {[%clk 0:02:46]}
16. Rae1 {[%clk 0:01:27.8]} 16... Kd7 {[%clk 0:02:27.9]} 17. Qd1 {[%clk
0:01:16.7]} 17... Rc8 {[%clk 0:02:15.8]} 18. d4 {[%clk 0:01:11.7]} 18... cxd4
{[%clk 0:02:16]} 19. Nxd4 {[%clk 0:01:12.6]} 19... Nxd4 {[%clk 0:02:16.3]} 20.
Bxd4 {[%clk 0:01:13.5]} 20... Kc7 {[%clk 0:02:15.2]} 21. Qe2 {[%clk 0:00:48.8]}
21... Kb8 {[%clk 0:02:09.8]} 22. Bg1 {[%clk 0:00:48.4]} 22... Rc4 {[%clk
0:01:57.1]} 23. Qf2 {[%clk 0:00:39.8]} 23... Qc7 {[%clk 0:01:54.2]} 24. Re2
{[%clk 0:00:37.7]} 24... Bc6 {[%clk 0:01:33.6]} 25. Nd1 {[%clk 0:00:37.3]} 25...
Qb7 {[%clk 0:01:33.1]} 26. Qe1 {[%clk 0:00:35.6]} 26... Bd7 {[%clk 0:01:24]} 27.
c3 {[%clk 0:00:34.9]} 27... Rc7 {[%clk 0:01:23.7]} 28. Ne3 {[%clk 0:00:33.6]}
28... Rgc8 {[%clk 0:01:23.7]} 29. Nc2 {[%clk 0:00:33.1]} 29... Nd3 {[%clk
0:01:21.9]} 30. Qb1 {[%clk 0:00:32]} 30... Nf4 {[%clk 0:01:20.9]} 31. Rxf4
{[%clk 0:00:28.8]} 31... gxf4 {[%clk 0:01:21.8]} 32. e5 {[%clk 0:00:22.4]} 32...
Bc6 {[%clk 0:01:22]} 33. Bxc6 {[%clk 0:00:20.1]} 33... Qxc6+ {[%clk 0:01:22.4]}
34. Kh2 {[%clk 0:00:20.6]} 34... dxe5 {[%clk 0:01:22.7]} 35. Rxe5 {[%clk
0:00:18.8]} 35... Bd6 {[%clk 0:01:23.2]} 36. Nd4 {[%clk 0:00:18.6]} 36... Qb7
{[%clk 0:01:23.4]} 37. Re4 {[%clk 0:00:16.7]} 37... f3+ {[%clk 0:01:23.6]} 38.
Kh1 {[%clk 0:00:17]} 38... Bc5 {[%clk 0:01:09.8]} 39. Qd3 {[%clk 0:00:15.6]}
39... exf5 {[%clk 0:01:07.6]} 40. Nxf5 {[%clk 0:00:13]} 40... f2 {[%clk
0:01:07.6]} 41. Bh2 {[%clk 0:00:06.1]} 41... Qxe4+ {[%clk 0:01:04.2]} 0-1

[Event "Early-Titled-Tuesday-Blitz-March-26-2024"]
[Site "Chess.com"]
[Date "2024.03.26"]
[Round "2"]
[White "Shuvalov"]
[Black "Zhigalko_Sergei"]
[Result "0-1"]
[WhiteElo "2605"]
[BlackElo "2905"]
[TimeControl "180+1"]
[EndTime "8:17:02 PDT"]
[Termination "Zhigalko_Sergei won by resignation"]

1. d4 {[%clk 0:01:25.7]} 1... Nf6 {[%clk 0:01:26.6]} 2. c4 {[%clk 0:01:25.2]}
2... e6 {[%clk 0:01:27]} 3. Nf3 {[%clk 0:01:24.2]} 3... b6 {[%clk 0:01:27.5]} 4.
g3 {[%clk 0:01:23.1]} 4... Ba6 {[%clk 0:01:27.1]} 5. b3 {[%clk 0:01:23.1]} 5...
Bb4+ {[%clk 0:01:27.2]} 6. Bd2 {[%clk 0:01:23.5]} 6... Be7 {[%clk 0:01:27.3]} 7.
Bg2 {[%clk 0:01:23.5]} 7... c6 {[%clk 0:01:27.6]} 8. Nc3 {[%clk 0:01:19.7]} 8...
d5 {[%clk 0:01:28.5]} 9. Ne5 {[%clk 0:01:17.3]} 9... Nfd7 {[%clk 0:01:28.5]} 10.
Nxd7 {[%clk 0:01:12.6]} 10... Nxd7 {[%clk 0:01:29.4]} 11. cxd5 {[%clk
0:01:12.8]} 11... cxd5 {[%clk 0:01:30.3]} 12. O-O {[%clk 0:01:12.7]} 12... O-O
{[%clk 0:01:30.2]} 13. a4 {[%clk 0:01:10.3]} 13... Nf6 {[%clk 0:01:22.9]} 14.
Re1 {[%clk 0:01:09]} 14... Qd7 {[%clk 0:01:19.7]} 15. Rc1 {[%clk 0:00:56]} 15...
Rac8 {[%clk 0:01:16.1]} 16. Rc2 {[%clk 0:00:54.6]} 16... Rc7 {[%clk 0:01:12.8]}
17. Bf4 {[%clk 0:00:53.4]} 17... Rc6 {[%clk 0:01:09.3]} 18. Qa1 {[%clk
0:00:45.9]} 18... Rfc8 {[%clk 0:01:04.8]} 19. Rec1 {[%clk 0:00:45]} 19... Bb4
{[%clk 0:00:59.7]} 20. Bf3 {[%clk 0:00:33.1]} 20... h6 {[%clk 0:00:56.9]} 21.
Bd2 {[%clk 0:00:30.6]} 21... Ne4 {[%clk 0:00:43.8]} 22. Be1 {[%clk 0:00:20.3]}
22... Ng5 {[%clk 0:00:34.6]} 23. Qb2 {[%clk 0:00:18.6]} 23... Nxf3+ {[%clk
0:00:33.9]} 24. exf3 {[%clk 0:00:19.5]} 24... Bd3 {[%clk 0:00:34.1]} 25. Na2
{[%clk 0:00:02.7]} 25... Rxc2 {[%clk 0:00:33.1]} 26. Rxc2 {[%clk 0:00:02.3]}
26... Rxc2 {[%clk 0:00:33.7]} 0-1

[Event "Early-Titled-Tuesday-Blitz-March-26-2024"]
[Site "Chess.com"]
[Date "2024.03.26"]
[Round "2"]
[White "IshviAggarwal"]
[Black "mortngabriel"]
[Result "0-1"]
[WhiteElo "2184"]
[BlackElo "2486"]
[TimeControl "180+1"]
[EndTime "8:17:04 PDT"]
[Termination "mortngabriel won by resignation"]

1. Nf3 {[%clk 0:03:00.9]} 1... Nf6 {[%clk 0:02:59.8]} 2. d4 {[%clk 0:02:59.8]}
2... d5 {[%clk 0:02:57.8]} 3. g3 {[%clk 0:03:00.4]} 3... e6 {[%clk 0:02:57.6]}
4. Bg2 {[%clk 0:03:01.1]} 4... Be7 {[%clk 0:02:58.3]} 5. O-O {[%clk 0:03:01.8]}
5... O-O {[%clk 0:02:59]} 6. c4 {[%clk 0:03:02.4]} 6... dxc4 {[%clk 0:02:59.4]}
7. Qc2 {[%clk 0:03:03]} 7... b5 {[%clk 0:02:59.2]} 8. a4 {[%clk 0:03:03.3]} 8...
b4 {[%clk 0:02:58.8]} 9. Ne5 {[%clk 0:02:53]} 9... Nd5 {[%clk 0:02:55]} 10. Nxc4
{[%clk 0:02:50.5]} 10... c5 {[%clk 0:02:54.2]} 11. Rd1 {[%clk 0:02:39.9]} 11...
cxd4 {[%clk 0:02:52.6]} 12. Rxd4 {[%clk 0:02:39.8]} 12... Nc6 {[%clk 0:02:42.5]}
13. Rd1 {[%clk 0:02:39.5]} 13... Qc7 {[%clk 0:02:04.2]} 14. e4 {[%clk 0:02:36]}
14... Nb6 {[%clk 0:01:51.7]} 15. Bf4 {[%clk 0:02:30]} 15... Qb7 {[%clk
0:01:38.1]} 16. e5 {[%clk 0:02:21.7]} 16... Nd5 {[%clk 0:01:34]} 17. Rxd5 {[%clk
0:02:12]} 17... exd5 {[%clk 0:01:33.6]} 18. Bxd5 {[%clk 0:02:12.9]} 18... Qd7
{[%clk 0:00:42]} 19. Be4 {[%clk 0:02:08.3]} 19... Bb7 {[%clk 0:00:28.9]} 20.
Bxh7+ {[%clk 0:01:36.1]} 20... Kh8 {[%clk 0:00:29.1]} 21. Bf5 {[%clk 0:01:36.2]}
21... Nd4 {[%clk 0:00:21.8]} 22. Bxd7 {[%clk 0:01:25.4]} 22... Nxc2 {[%clk
0:00:21.9]} 23. Ra2 {[%clk 0:01:10.7]} 23... b3 {[%clk 0:00:21.2]} 24. Ra3
{[%clk 0:01:10.9]} 24... Nxa3 {[%clk 0:00:20]} 25. Nbxa3 {[%clk 0:01:10.3]}
25... Rad8 {[%clk 0:00:20]} 26. e6 {[%clk 0:00:59.7]} 26... fxe6 {[%clk
0:00:18.6]} 27. Ne5 {[%clk 0:00:59.6]} 27... Bxa3 {[%clk 0:00:16.4]} 28. bxa3
{[%clk 0:00:29]} 28... b2 {[%clk 0:00:14.3]} 0-1

[Event "Early-Titled-Tuesday-Blitz-March-26-2024"]
[Site "Chess.com"]
[Date "2024.03.26"]
[Round "2"]
[White "Kostukov_Alex"]
[Black "Golubovsky"]
[Result "0-1"]
[WhiteElo "2274"]
[BlackElo "2516"]
[TimeControl "180+1"]
[EndTime "8:17:05 PDT"]
[Termination "Golubovsky won on time"]

1. g3 {[%clk 0:03:00.9]} 1... Nf6 {[%clk 0:02:59.3]} 2. Bg2 {[%clk 0:02:59.2]}
2... c5 {[%clk 0:02:59.7]} 3. c4 {[%clk 0:02:59.6]} 3... Nc6 {[%clk 0:02:59.7]}
4. Nf3 {[%clk 0:03:00.5]} 4... d6 {[%clk 0:02:55.2]} 5. d4 {[%clk 0:02:59.1]}
5... cxd4 {[%clk 0:02:54.5]} 6. Nxd4 {[%clk 0:02:59.1]} 6... Bd7 {[%clk
0:02:54.8]} 7. O-O {[%clk 0:02:58.1]} 7... g6 {[%clk 0:02:55.3]} 8. Nc3 {[%clk
0:02:57.3]} 8... Bg7 {[%clk 0:02:54.3]} 9. b3 {[%clk 0:02:52.4]} 9... O-O {[%clk
0:02:51.4]} 10. Bb2 {[%clk 0:02:52.4]} 10... Rc8 {[%clk 0:02:51]} 11. Nc2 {[%clk
0:02:41.1]} 11... Qa5 {[%clk 0:02:48.4]} 12. Qd2 {[%clk 0:02:37.9]} 12... Rfd8
{[%clk 0:02:39.4]} 13. Rfe1 {[%clk 0:02:35]} 13... a6 {[%clk 0:02:37.4]} 14.
Red1 {[%clk 0:02:35.1]} 14... b5 {[%clk 0:02:35.8]} 15. Nd5 {[%clk 0:02:01.6]}
15... Qxd2 {[%clk 0:02:20.2]} 16. Rxd2 {[%clk 0:01:57.9]} 16... bxc4 {[%clk
0:02:14.3]} 17. bxc4 {[%clk 0:01:23.6]} 17... Nxd5 {[%clk 0:02:00.3]} 18. Bxg7
{[%clk 0:01:20.2]} 18... Nb6 {[%clk 0:01:55.8]} 19. Bh6 {[%clk 0:00:59.2]} 19...
Nxc4 {[%clk 0:01:56]} 20. Rd3 {[%clk 0:00:55.3]} 20... N6e5 {[%clk 0:01:56.1]}
21. Rc3 {[%clk 0:00:24.7]} 21... Nb6 {[%clk 0:01:43.3]} 22. Rxc8 {[%clk
0:00:22.6]} 22... Rxc8 {[%clk 0:01:43.3]} 23. Nb4 {[%clk 0:00:20.5]} 23... a5
{[%clk 0:01:42.6]} 24. Nd5 {[%clk 0:00:20.7]} 24... Nxd5 {[%clk 0:01:40.8]} 25.
Bxd5 {[%clk 0:00:21.6]} 25... e6 {[%clk 0:01:36.1]} 26. Be4 {[%clk 0:00:15.1]}
26... Rc4 {[%clk 0:01:33.9]} 27. Bg2 {[%clk 0:00:10.6]} 27... Bc6 {[%clk
0:01:26.8]} 28. Bf4 {[%clk 0:00:09.4]} 28... f6 {[%clk 0:00:59.4]} 29. Bf1
{[%clk 0:00:05.3]} 29... Nf7 {[%clk 0:00:51.8]} 30. Rc1 {[%clk 0:00:03.9]} 30...
Rxc1 {[%clk 0:00:50.6]} 31. Bxc1 {[%clk 0:00:04.8]} 31... Kf8 {[%clk 0:00:48]}
32. f4 {[%clk 0:00:05]} 32... Ke7 {[%clk 0:00:46.4]} 33. Kf2 {[%clk 0:00:05.3]}
33... e5 {[%clk 0:00:46.8]} 34. e3 {[%clk 0:00:01.8]} 34... d5 {[%clk
0:00:46.3]} 0-1

[Event "Early-Titled-Tuesday-Blitz-March-26-2024"]
[Site "Chess.com"]
[Date "2024.03.26"]
[Round "2"]
[White "newyorkmouse"]
[Black "Jospem"]
[Result "0-1"]
[WhiteElo "2706"]
[BlackElo "3085"]
[TimeControl "180+1"]
[EndTime "8:17:07 PDT"]
[Termination "Jospem won by resignation"]

1. Nf3 {[%clk 0:03:00.7]} 1... c5 {[%clk 0:02:59.6]} 2. b3 {[%clk 0:03:00.9]}
2... Nf6 {[%clk 0:02:59]} 3. Bb2 {[%clk 0:03:01.1]} 3... e6 {[%clk 0:02:59.4]}
4. e3 {[%clk 0:02:58.4]} 4... b6 {[%clk 0:02:59]} 5. c4 {[%clk 0:02:54.2]} 5...
Bb7 {[%clk 0:02:58.9]} 6. Be2 {[%clk 0:02:54.5]} 6... Be7 {[%clk 0:02:58.9]} 7.
O-O {[%clk 0:02:55.1]} 7... O-O {[%clk 0:02:59.3]} 8. d4 {[%clk 0:02:55.5]} 8...
d6 {[%clk 0:02:59.5]} 9. Nc3 {[%clk 0:02:54.4]} 9... Nbd7 {[%clk 0:02:59.9]} 10.
d5 {[%clk 0:02:51.8]} 10... e5 {[%clk 0:02:56.1]} 11. a4 {[%clk 0:02:38.9]}
11... Re8 {[%clk 0:02:52.2]} 12. Qd2 {[%clk 0:02:31.1]} 12... Bf8 {[%clk
0:02:51.8]} 13. e4 {[%clk 0:02:29.4]} 13... g6 {[%clk 0:02:51.6]} 14. a5 {[%clk
0:02:26.9]} 14... bxa5 {[%clk 0:02:46.7]} 15. Bd3 {[%clk 0:02:25.8]} 15... Nh5
{[%clk 0:02:43.7]} 16. Ne2 {[%clk 0:02:24.1]} 16... a6 {[%clk 0:02:18.1]} 17.
Bc3 {[%clk 0:02:20.3]} 17... Ng7 {[%clk 0:02:16.1]} 18. Rxa5 {[%clk 0:02:13.7]}
18... f5 {[%clk 0:02:14.6]} 19. Rb1 {[%clk 0:02:10.9]} 19... Nf6 {[%clk
0:02:14.3]} 20. b4 {[%clk 0:02:09.4]} 20... fxe4 {[%clk 0:02:13.4]} 21. bxc5
{[%clk 0:02:04.7]} 21... exd3 {[%clk 0:02:09.8]} 22. Rxb7 {[%clk 0:01:46.8]}
22... dxe2 {[%clk 0:02:09]} 23. c6 {[%clk 0:01:45.9]} 23... Ne4 {[%clk
0:02:06.6]} 24. Qh6 {[%clk 0:01:21]} 24... Nxc3 {[%clk 0:01:59.7]} 25. Ra1
{[%clk 0:01:20.1]} 25... Ne4 {[%clk 0:01:47.9]} 26. c5 {[%clk 0:01:05.1]} 26...
dxc5 {[%clk 0:01:41]} 27. Rd7 {[%clk 0:01:02.3]} 27... Qf6 {[%clk 0:01:38.1]}
28. Re1 {[%clk 0:00:59.2]} 28... Re7 {[%clk 0:01:29.9]} 29. Rxe2 {[%clk
0:00:58]} 29... Nf5 {[%clk 0:01:28.5]} 30. Qh3 {[%clk 0:00:55.1]} 30... Rxd7
{[%clk 0:01:27.7]} 31. cxd7 {[%clk 0:00:55.2]} 31... Nfd6 {[%clk 0:00:22.9]} 32.
Rb2 {[%clk 0:00:46.5]} 32... Rd8 {[%clk 0:00:22.7]} 33. Rb6 {[%clk 0:00:44]}
33... Qf5 {[%clk 0:00:22.7]} 34. Qh4 {[%clk 0:00:42.1]} 34... Rxd7 {[%clk
0:00:23]} 35. Rb8 {[%clk 0:00:41.6]} 35... Rf7 {[%clk 0:00:23.3]} 36. h3 {[%clk
0:00:41.1]} 36... c4 {[%clk 0:00:20.5]} 0-1

[Event "Early-Titled-Tuesday-Blitz-March-26-2024"]
[Site "Chess.com"]
[Date "2024.03.26"]
[Round "2"]
[White "jefferyx"]
[Black "TimGrutter03"]
[Result "1-0"]
[WhiteElo "3099"]
[BlackElo "2558"]
[TimeControl "180+1"]
[EndTime "8:17:07 PDT"]
[Termination "jefferyx won on time"]

1. e4 {[%clk 0:02:56.1]} 1... c5 {[%clk 0:02:58.3]} 2. Nf3 {[%clk 0:02:55]} 2...
d6 {[%clk 0:02:58.1]} 3. Nc3 {[%clk 0:02:55.4]} 3... Nf6 {[%clk 0:02:58.3]} 4.
d4 {[%clk 0:02:55.7]} 4... cxd4 {[%clk 0:02:58.6]} 5. Qxd4 {[%clk 0:02:56.6]}
5... Nc6 {[%clk 0:02:57.8]} 6. Qd3 {[%clk 0:02:57.1]} 6... g6 {[%clk 0:02:56.6]}
7. Nd5 {[%clk 0:02:57.3]} 7... Bg7 {[%clk 0:02:56.1]} 8. c3 {[%clk 0:02:57.9]}
8... O-O {[%clk 0:02:53.5]} 9. Bg5 {[%clk 0:02:58.5]} 9... Nxd5 {[%clk
0:02:51.8]} 10. exd5 {[%clk 0:02:59.4]} 10... Ne5 {[%clk 0:02:46.9]} 11. Nxe5
{[%clk 0:02:59.6]} 11... Bxe5 {[%clk 0:02:47.8]} 12. Be2 {[%clk 0:02:59.7]}
12... Bf5 {[%clk 0:02:41.1]} 13. Qd2 {[%clk 0:03:00.2]} 13... Rc8 {[%clk
0:02:35.3]} 14. O-O {[%clk 0:02:59.5]} 14... Re8 {[%clk 0:02:30.3]} 15. a4
{[%clk 0:02:59.1]} 15... Qb6 {[%clk 0:02:25]} 16. Be3 {[%clk 0:02:58.2]} 16...
Qa5 {[%clk 0:02:06.8]} 17. Rfe1 {[%clk 0:02:51.6]} 17... Bd7 {[%clk 0:02:00.4]}
18. Ra3 {[%clk 0:02:28.6]} 18... Bg7 {[%clk 0:01:44.8]} 19. Rc1 {[%clk
0:02:25.5]} 19... a6 {[%clk 0:01:43.4]} 20. b4 {[%clk 0:02:19.9]} 20... Qc7
{[%clk 0:01:42.7]} 21. a5 {[%clk 0:02:20.1]} 21... e6 {[%clk 0:01:20.9]} 22. Bb6
{[%clk 0:02:19.8]} 22... Qb8 {[%clk 0:01:20.8]} 23. Bf3 {[%clk 0:02:13.1]} 23...
e5 {[%clk 0:01:18.9]} 24. c4 {[%clk 0:02:13.2]} 24... f5 {[%clk 0:01:12.2]} 25.
c5 {[%clk 0:02:13.3]} 25... Bb5 {[%clk 0:01:08.3]} 26. c6 {[%clk 0:02:11.9]}
26... e4 {[%clk 0:01:04.6]} 27. Bd1 {[%clk 0:02:09.6]} 27... Qa8 {[%clk
0:00:45.7]} 28. c7 {[%clk 0:02:08.6]} 28... Be5 {[%clk 0:00:42.7]} 29. h4 {[%clk
0:01:59.5]} 29... f4 {[%clk 0:00:39.9]} 30. Bg4 {[%clk 0:01:55.5]} 30... Re7
{[%clk 0:00:25.2]} 31. Qc2 {[%clk 0:01:37.9]} 31... Bd3 {[%clk 0:00:18.1]} 32.
Rxd3 {[%clk 0:01:37.1]} 32... exd3 {[%clk 0:00:18.3]} 33. Qxd3 {[%clk 0:01:38]}
33... Bf6 {[%clk 0:00:14.7]} 34. Qh3 {[%clk 0:01:33.2]} 34... Ree8 {[%clk
0:00:10.7]} 35. h5 {[%clk 0:01:29]} 35... Bb2 {[%clk 0:00:02.7]} 36. hxg6 {[%clk
0:01:24.6]} 36... hxg6 {[%clk 0:00:01.8]} 37. Qh6 {[%clk 0:01:16.4]} 37... Bxc1
{[%clk 0:00:01.7]} 38. Qxg6+ {[%clk 0:01:16.5]} 38... Kf8 {[%clk 0:00:02.1]} 39.
Qf6+ {[%clk 0:01:05.7]} 39... Kg8 {[%clk 0:00:01.9]} 40. Be6+ {[%clk 0:00:55.7]}
40... Rxe6 {[%clk 0:00:01.6]} 41. dxe6 {[%clk 0:00:56.6]} 41... Rf8 {[%clk
0:00:01.5]} 42. Qg6+ {[%clk 0:00:56.8]} 1-0

[Event "Early-Titled-Tuesday-Blitz-March-26-2024"]
[Site "Chess.com"]
[Date "2024.03.26"]
[Round "2"]
[White "tetrix83"]
[Black "norwaytoadog"]
[Result "1-0"]
[WhiteElo "2626"]
[BlackElo "2397"]
[TimeControl "180+1"]
[EndTime "8:17:08 PDT"]
[Termination "tetrix83 won on time"]

1. e4 {[%clk 0:03:00.9]} 1... c5 {[%clk 0:02:54.6]} 2. Nf3 {[%clk 0:02:59.5]}
2... d6 {[%clk 0:02:51.4]} 3. Bb5+ {[%clk 0:02:59.5]} 3... Bd7 {[%clk
0:02:49.5]} 4. Bxd7+ {[%clk 0:02:59.3]} 4... Nxd7 {[%clk 0:02:47.3]} 5. O-O
{[%clk 0:02:58.1]} 5... Ngf6 {[%clk 0:02:45.4]} 6. Qe2 {[%clk 0:02:57.4]} 6...
e6 {[%clk 0:02:44.9]} 7. b3 {[%clk 0:02:56]} 7... Be7 {[%clk 0:02:43.8]} 8. Bb2
{[%clk 0:02:56.3]} 8... O-O {[%clk 0:02:43.7]} 9. c4 {[%clk 0:02:55]} 9... Qa5
{[%clk 0:02:43.1]} 10. d4 {[%clk 0:02:51]} 10... cxd4 {[%clk 0:02:41.3]} 11.
Nxd4 {[%clk 0:02:51.9]} 11... a6 {[%clk 0:02:40.4]} 12. Nc3 {[%clk 0:02:52]}
12... Rac8 {[%clk 0:02:39.8]} 13. Rad1 {[%clk 0:02:50.9]} 13... Rfe8 {[%clk
0:02:35.2]} 14. Kh1 {[%clk 0:02:49.9]} 14... Bf8 {[%clk 0:02:27.5]} 15. Rd3
{[%clk 0:02:44.5]} 15... Ne5 {[%clk 0:02:18.8]} 16. Rg3 {[%clk 0:02:43.4]} 16...
Nc6 {[%clk 0:02:02.7]} 17. Nxc6 {[%clk 0:02:37]} 17... bxc6 {[%clk 0:01:57.2]}
18. f4 {[%clk 0:02:37]} 18... Qh5 {[%clk 0:01:32.4]} 19. Qe1 {[%clk 0:02:23.2]}
19... Kh8 {[%clk 0:01:17.6]} 20. e5 {[%clk 0:02:18.5]} 20... dxe5 {[%clk
0:01:04.3]} 21. fxe5 {[%clk 0:02:19.4]} 21... Nd7 {[%clk 0:01:04.3]} 22. Ne4
{[%clk 0:02:17.2]} 22... Nc5 {[%clk 0:00:53.3]} 23. Nd6 {[%clk 0:01:56]} 23...
Bxd6 {[%clk 0:00:47.4]} 24. exd6 {[%clk 0:01:56.9]} 24... f6 {[%clk 0:00:46.7]}
25. Rxf6 {[%clk 0:01:55.5]} 25... e5 {[%clk 0:00:31.9]} 26. Rf1 {[%clk
0:01:41.6]} 26... Rcd8 {[%clk 0:00:29.7]} 27. b4 {[%clk 0:01:39.9]} 27... Na4
{[%clk 0:00:25.7]} 28. Ba1 {[%clk 0:01:08.6]} 28... Rxd6 {[%clk 0:00:24.9]} 29.
Bxe5 {[%clk 0:01:02.4]} 29... Rg6 {[%clk 0:00:19.8]} 30. Re3 {[%clk 0:00:44.8]}
30... Rge6 {[%clk 0:00:19.5]} 31. Bxg7+ {[%clk 0:00:43.1]} 31... Kxg7 {[%clk
0:00:18.4]} 32. Rxe6 {[%clk 0:00:43.6]} 32... Nb6 {[%clk 0:00:05.8]} 33. Rxe8
{[%clk 0:00:41.8]} 1-0